Workbook

Sheet Kierunek
AJ1: Data wydruku: | AK1: =TODAY() -> 2012-11-30
G2: PLAN STUDIÓW DLA KIERUNKU: | H2: Technologia Żywności i Żywienie Człowieka I-szy stopień, studia inżynierskie niestacjonarne | AJ2: Data sporządzenia: | AK2: 2012-07-15
G3: SPECJALNOŚĆ: | H3: wszystkie | AJ3: Obowiązuje od roku akademickiego: | AK3: 2012/2013
C5: Lp | D5: Przedmioty (Kursy) | G5: Suma godzin / ECTS | M5: Sem. I | R5: Sem. II | W5: Sem. III | AB5: Sem. IV | AG5: Sem. V | AL5: Sem. VI | AQ5: Sem. VII | AV5: Sem. VIII
G6: W | H6: Ć | I6: L | J6: P | K6: S | L6: PE | M6: W | N6: Ć | O6: L | P6: P | Q6: PE | R6: W | S6: Ć | T6: L | U6: P | V6: PE | W6: W | X6: Ć | Y6: L | Z6: P | AA6: PE | AB6: W | AC6: Ć | AD6: L | AE6: P | AF6: PE | AG6: W | AH6: Ć | AI6: L | AJ6: P | AK6: PE | AL6: W | AM6: Ć | AN6: L | AO6: P | AP6: PE | AQ6: W | AR6: Ć | AS6: L | AT6: P | AU6: PE | AV6: W | AW6: Ć | AX6: L | AY6: P | AZ6: PE
A7: 2 | C7: A | D7: NIETECHNICZNE | G7: =SUM(G8:G14) -> 56 | H7: 128 | I7: 0 | J7: 16 | K7: 200 | L7: 15.5 | M7: 5 | N7: 1 | O7: 0 | P7: 2 | Q7: 5.5 | R7: 0 | S7: 0 | T7: 0 | U7: 0 | V7: 0 | W7: 0 | X7: 3 | Y7: 0 | Z7: 0 | AA7: 1.5 | AB7: 0 | AC7: 3 | AD7: 0 | AE7: 0 | AF7: 1.5 | AG7: 0 | AH7: 3 | AI7: 0 | AJ7: 0 | AK7: 1.5 | AL7: 0 | AM7: 3 | AN7: 0 | AO7: 0 | AP7: 1.5 | AQ7: 0 | AR7: 3 | AS7: 0 | AT7: 0 | AU7: 2 | AV7: 2 | AW7: 0 | AX7: 0 | AY7: 0 | AZ7: 2
C8: 1 | D8: Humanistyczne | E8: Humanistyczne I | F8: 1.1/1 Podstawy prakseologii | G8: =8*(M8+R8+W8+AB8+AG8+AL8+AQ8+AV8) -> 16 | H8: =8*(N8+S8+X8+AC8+AH8+AM8+AR8+AW8) -> 8 | I8: =8*(O8+T8+Y8+AD8+AI8+AN8+AS8+AX8) -> 0 | J8: =8*(P8+U8+Z8+AE8+AJ8+AO8+AT8+AY8) -> 0 | K8: =SUM(G8:J8) -> 24 | L8: =Q8+V8+AA8+AF8+AK8+AP8+AU8+AZ8 -> 2 | M8: 2 | N8: 1 | Q8: 2
F9: 1.1/2 Socjologia
E10: Humanistyczne II | F10: 1.2/1 Ergonomia | G10: =8*(M10+R10+W10+AB10+AG10+AL10+AQ10+AV10) -> 16 | H10: =8*(N10+S10+X10+AC10+AH10+AM10+AR10+AW10) -> 0 | I10: =8*(O10+T10+Y10+AD10+AI10+AN10+AS10+AX10) -> 0 | J10: =8*(P10+U10+Z10+AE10+AJ10+AO10+AT10+AY10) -> 0 | K10: =SUM(G10:J10) -> 16 | L10: =Q10+V10+AA10+AF10+AK10+AP10+AU10+AZ10 -> 2 | AV10: 2 | AZ10: 2
F11: 1.2/2 Etyka zawodowa
E12: 1.3. Przedsiębiorczość innowacyjna | G12: =8*(M12+R12+W12+AB12+AG12+AL12+AQ12+AV12) -> 8 | H12: =8*(N12+S12+X12+AC12+AH12+AM12+AR12+AW12) -> 0 | I12: =8*(O12+T12+Y12+AD12+AI12+AN12+AS12+AX12) -> 0 | J12: =8*(P12+U12+Z12+AE12+AJ12+AO12+AT12+AY12) -> 16 | K12: =SUM(G12:J12) -> 24 | L12: =Q12+V12+AA12+AF12+AK12+AP12+AU12+AZ12 -> 2.5 | M12: 1 | P12: 2 | Q12: 2.5
C13: 2 | D13: Język obcy: J. angielski; J. niemiecki; J. francuski; J. rosyjski | H13: 120 | K13: 120 | L13: 8 | X13: 3 | AA13: 1.5 | AC13: 3 | AF13: 1.5 | AH13: 3 | AK13: 1.5 | AM13: 3 | AP13: 1.5 | AR13: 3 | AU13: 2
C14: 3 | D14: Przysposobienie akademickie | G14: 16 | I14: =8*(O14+T14+Y14+AD14+AI14+AN14+AS14+AX14) -> 0 | J14: =8*(P14+U14+Z14+AE14+AJ14+AO14+AT14+AY14) -> 0 | K14: 16 | L14: =Q14+V14+AA14+AF14+AK14+AP14+AU14+AZ14 -> 1 | M14: 2 | Q14: 1
A15: 2 | C15: B | D15: PODSTAWOWE | G15: =SUM(G16:G26) -> 192 | H15: 112 | I15: 64 | J15: 32 | K15: 400 | L15: 55.5 | M15: 10 | N15: 7 | O15: 0 | P15: 0 | Q15: 20.5 | R15: 10 | S15: 5 | T15: 6 | U15: 4 | V15: 27 | W15: =SUM(W16:W24) -> 2 | X15: 1 | Y15: 2 | Z15: 0 | AA15: 5 | AB15: 0 | AC15: 0 | AD15: 0 | AE15: 0 | AF15: 0 | AG15: 0 | AH15: 0 | AI15: 0 | AJ15: 0 | AK15: 0 | AL15: 0 | AM15: 0 | AN15: 0 | AO15: 0 | AP15: 0 | AQ15: 2 | AR15: 1 | AS15: 0 | AT15: 0 | AU15: 3 | AV15: 0 | AW15: 0 | AX15: 0 | AY15: 0 | AZ15: 0
A16: 1 | C16: 1 | D16: Matematyka | G16: =8*(M16+R16+W16+AB16+AG16+AL16+AQ16+AV16) -> 24 | H16: =8*(N16+S16+X16+AC16+AH16+AM16+AR16+AW16) -> 32 | I16: =8*(O16+T16+Y16+AD16+AI16+AN16+AS16+AX16) -> 0 | J16: =8*(P16+U16+Z16+AE16+AJ16+AO16+AT16+AY16) -> 0 | K16: =SUM(G16:J16) -> 56 | L16: =Q16+V16+AA16+AF16+AK16+AP16+AU16+AZ16 -> 8 | M16: 2 | N16: 2 | Q16: 4 | R16: 1 | S16: 2 | V16: 4
C17: 2 | D17: Statystyka inżynierska | G17: =8*(M17+R17+W17+AB17+AG17+AL17+AQ17+AV17) -> 16 | H17: =8*(N17+S17+X17+AC17+AH17+AM17+AR17+AW17) -> 8 | I17: =8*(O17+T17+Y17+AD17+AI17+AN17+AS17+AX17) -> 0 | J17: =8*(P17+U17+Z17+AE17+AJ17+AO17+AT17+AY17) -> 0 | K17: =SUM(G17:J17) -> 24 | L17: =Q17+V17+AA17+AF17+AK17+AP17+AU17+AZ17 -> 3 | AQ17: 2 | AR17: 1 | AU17: 3
C18: 3 | D18: Chemia ogólna i organiczna | G18: 32 | H18: 24 | I18: 16 | J18: 0 | K18: 72 | L18: 10 | M18: 2 | N18: 2 | Q18: 5 | R18: 2 | S18: 1 | T18: 2 | V18: 5
C19: 4 | D19: Biochemia | G19: 16 | H19: 8 | I19: 16 | J19: 0 | K19: 40 | L19: 5 | W19: 2 | X19: 1 | Y19: 2 | AA19: 5
C20: 5 | D20: Podstawy fizyki | G20: 24 | H20: 16 | I20: 16 | J20: 0 | K20: 56 | L20: 8.5 | M20: 2 | N20: 1 | Q20: 4.5 | R20: 1 | S20: 1 | T20: 2 | V20: 4
C21: 6 | D21: Ekologia i ochrona środowiska | G21: =8*(M21+R21+W21+AB21+AG21+AL21+AQ21+AV21) -> 16 | H21: =8*(N21+S21+X21+AC21+AH21+AM21+AR21+AW21) -> 8 | I21: =8*(O21+T21+Y21+AD21+AI21+AN21+AS21+AX21) -> 0 | J21: =8*(P21+U21+Z21+AE21+AJ21+AO21+AT21+AY21) -> 0 | K21: =SUM(G21:J21) -> 24 | L21: 4.5 | M21: 2 | N21: 1 | Q21: 4.5
C22: 4 | D22: Technologie infromacyjne | G22: 16 | H22: 0 | I22: 16 | J22: 0 | K22: 32 | L22: 4.5 | R22: 2 | T22: 2 | V22: 4.5
C23: 7 | D23: Rysunek techniczny | G23: =8*(M23+R23+W23+AB23+AG23+AL23+AQ23+AV23) -> 16 | H23: =8*(N23+S23+X23+AC23+AH23+AM23+AR23+AW23) -> 8 | I23: =8*(O23+T23+Y23+AD23+AI23+AN23+AS23+AX23) -> 0 | J23: =8*(P23+U23+Z23+AE23+AJ23+AO23+AT23+AY23) -> 16 | K23: =SUM(G23:J23) -> 40 | L23: =Q23+V23+AA23+AF23+AK23+AP23+AU23+AZ23 -> 4.5 | M23: 2 | N23: 1 | Q23: 2.5 | U23: 2 | V23: 2
C24: 8 | D24: Maszynoznawstwo ogólne | G24: =8*(M24+R24+W24+AB24+AG24+AL24+AQ24+AV24) -> 16 | H24: =8*(N24+S24+X24+AC24+AH24+AM24+AR24+AW24) -> 0 | I24: =8*(O24+T24+Y24+AD24+AI24+AN24+AS24+AX24) -> 0 | J24: =8*(P24+U24+Z24+AE24+AJ24+AO24+AT24+AY24) -> 16 | K24: =SUM(G24:J24) -> 32 | L24: =Q24+V24+AA24+AF24+AK24+AP24+AU24+AZ24 -> 4.5 | R24: 2 | U24: 2 | V24: 4.5
C25: 10 | D25: Pozyskiwanie surowców spożywczych | E25: 10/1 Podstawy produkcji rolniczej | G25: 16 | H25: 8 | I25: 0 | J25: 0 | K25: 24 | L25: 3 | R25: 2 | S25: 1 | V25: 3
E26: 10/2 Technologie produkcji roślinnej i zwierzęcej
A27: 2 | C27: C | D27: KIERUNKOWE | G27: =SUM(G28:G53) -> 352 | H27: 64 | I27: 208 | J27: 48 | K27: 672 | L27: 95.5 | M27: 0 | N27: 0 | O27: 0 | P27: 0 | Q27: 0 | R27: 0 | S27: 0 | T27: 0 | U27: 0 | V27: 0 | W27: 10 | X27: 3 | Y27: 4 | Z27: 0 | AA27: 20 | AB27: 9 | AC27: 0 | AD27: 10 | AE27: 2 | AF27: 24 | AG27: 8 | AH27: 0 | AI27: 6 | AJ27: 2 | AK27: 18 | AL27: 6 | AM27: 0 | AN27: 6 | AO27: 0 | AP27: 13 | AQ27: 6 | AR27: 2 | AS27: 0 | AT27: 2 | AU27: 11 | AV27: 5 | AW27: 3 | AX27: 0 | AY27: 0 | AZ27: 8
A28: 1 | C28: 1 | D28: Chemia żywności | G28: =8*(M28+R28+W28+AB28+AG28+AL28+AQ28+AV28) -> 16 | H28: =8*(N28+S28+X28+AC28+AH28+AM28+AR28+AW28) -> 0 | I28: 16 | J28: 0 | K28: =SUM(G28:J28) -> 32 | L28: =Q28+V28+AA28+AF28+AK28+AP28+AU28+AZ28 -> 5 | AB28: 2 | AD28: 2 | AF28: 5
C29: 2 | D29: Mikrobiologia ogólna | G29: =8*(M29+R29+W29+AB29+AG29+AL29+AQ29+AV29) -> 16 | H29: =8*(N29+S29+X29+AC29+AH29+AM29+AR29+AW29) -> 0 | I29: =8*(O29+T29+Y29+AD29+AI29+AN29+AS29+AX29) -> 16 | J29: =8*(P29+U29+Z29+AE29+AJ29+AO29+AT29+AY29) -> 0 | K29: =SUM(G29:J29) -> 32 | L29: =Q29+V29+AA29+AF29+AK29+AP29+AU29+AZ29 -> 5 | W29: 2 | Y29: 2 | AA29: 5
C30: 3 | D30: Ogólna technologia żywności | G30: =8*(M30+R30+W30+AB30+AG30+AL30+AQ30+AV30) -> 16 | H30: =8*(N30+S30+X30+AC30+AH30+AM30+AR30+AW30) -> 0 | I30: =8*(O30+T30+Y30+AD30+AI30+AN30+AS30+AX30) -> 16 | J30: =8*(P30+U30+Z30+AE30+AJ30+AO30+AT30+AY30) -> 16 | K30: =SUM(G30:J30) -> 48 | L30: 7 | W30: 2 | AA30: 3 | AD30: 2 | AE30: 2 | AF30: 4
C31: 4 | D31: Technologie specjalnościowe | E31: 4.1 Technologie przetwarzania mięsa, mleka, ryb | G31: =8*(M31+R31+W31+AB31+AG31+AL31+AQ31+AV31) -> 24 | H31: =8*(N31+S31+X31+AC31+AH31+AM31+AR31+AW31) -> 0 | I31: =8*(O31+T31+Y31+AD31+AI31+AN31+AS31+AX31) -> 16 | J31: =8*(P31+U31+Z31+AE31+AJ31+AO31+AT31+AY31) -> 0 | K31: =SUM(G31:J31) -> 40 | L31: 6 | AB31: 3 | AD31: 2 | AF31: 6
E32: 4.2 Technologie produktów roślinnych | G32: =8*(M32+R32+W32+AB32+AG32+AL32+AQ32+AV32) -> 16 | H32: =8*(N32+S32+X32+AC32+AH32+AM32+AR32+AW32) -> 0 | I32: =8*(O32+T32+Y32+AD32+AI32+AN32+AS32+AX32) -> 16 | J32: =8*(P32+U32+Z32+AE32+AJ32+AO32+AT32+AY32) -> 0 | K32: =SUM(G32:J32) -> 32 | L32: =Q32+V32+AA32+AF32+AK32+AP32+AU32+AZ32 -> 5 | AG32: 2 | AI32: 2 | AK32: 5
E33: 4.3. Technologie gastronomiczne | G33: 16 | H33: 0 | I33: 16 | J33: 0 | K33: 32 | L33: 4 | AL33: 2 | AN33: 2 | AP33: 4
C34: 5 | D34: Inżynieria procesowa | G34: =8*(M34+R34+W34+AB34+AG34+AL34+AQ34+AV34) -> 16 | H34: =8*(N34+S34+X34+AC34+AH34+AM34+AR34+AW34) -> 0 | I34: =8*(O34+T34+Y34+AD34+AI34+AN34+AS34+AX34) -> 16 | J34: =8*(P34+U34+Z34+AE34+AJ34+AO34+AT34+AY34) -> 0 | K34: =SUM(G34:J34) -> 32 | L34: =Q34+V34+AA34+AF34+AK34+AP34+AU34+AZ34 -> 5 | AB34: 2 | AD34: 2 | AF34: 5
C35: 6 | D35: Maszynoznawstwo przetwórstwa spożywczego | G35: =8*(M35+R35+W35+AB35+AG35+AL35+AQ35+AV35) -> 16 | H35: =8*(N35+S35+X35+AC35+AH35+AM35+AR35+AW35) -> 0 | I35: =8*(O35+T35+Y35+AD35+AI35+AN35+AS35+AX35) -> 16 | J35: =8*(P35+U35+Z35+AE35+AJ35+AO35+AT35+AY35) -> 0 | K35: =SUM(G35:J35) -> 32 | L35: 4 | AG35: 2 | AI35: 2 | AK35: 4
C36: 7 | D36: Podstawy żywienia człowieka | G36: 16 | H36: 8 | I36: 0 | J36: 0 | K36: 24 | L36: 3 | W36: 2 | X36: 1 | AA36: 3
C37: 8 | D37: Analiza i ocena jakości żywności | G37: 16 | H37: 0 | I37: 16 | J37: 0 | K37: 32 | L37: 5 | AG37: 2 | AI37: 2 | AK37: 5
C38: 9 | D38: Towaroznawstwo produktów spożywczych | G38: 16 | H38: 16 | K38: 32 | L38: 4.5 | AV38: 2 | AW38: 2 | AZ38: 3
C39: 10 | D39: Bezpieczeństwo i higiena produkcji żywności | G39: 16 | H39: 16 | I39: 0 | J39: 0 | K39: 32 | L39: 5 | W39: 2 | X39: 2 | AA39: 5
C40: 11 | D40: Mikrobiologia żywności | G40: 16 | H40: 0 | I40: 16 | J40: 0 | K40: 32 | L40: 5 | AL40: 2 | AN40: 2 | AP40: 5
C41: 12 | D41: Biotechnologia | E41: 12/1 Podstawy biotechnologii | G41: 16 | H41: 0 | I41: 16 | J41: 0 | K41: 32 | L41: 4 | AB41: 2 | AD41: 2 | AF41: 4
E42: 12/2 Procesy biotechnologiczne w produkcji żywności
C43: 13 | D43: Utrwalanie i przechowywanie żywności | E43: 13/1 Podstawy przechowalnictwa | G43: 16 | H43: 0 | I43: 0 | J43: 16 | K43: 32 | L43: 4 | AG43: 2 | AJ43: 2 | AK43: 4
E44: 13/2 Utrwalanie surowców i produktów spożywczych
C45: 14 | D45: Technika chłodnicza | E45: 14/1 Podstawy chłodnictwa | G45: 16 | H45: 0 | I45: 16 | J45: 0 | K45: 32 | L45: 4 | AL45: 2 | AN45: 2 | AP45: 4
E46: 14/2 Instalacje chłodnicze
C47: 15 | D47: Opakowania do żywności | G47: =8*(M47+R47+W47+AB47+AG47+AL47+AQ47+AV47) -> 16 | H47: =8*(N47+S47+X47+AC47+AH47+AM47+AR47+AW47) -> 0 | I47: =8*(O47+T47+Y47+AD47+AI47+AN47+AS47+AX47) -> 16 | J47: =8*(P47+U47+Z47+AE47+AJ47+AO47+AT47+AY47) -> 0 | K47: =SUM(G47:J47) -> 32 | L47: =Q47+V47+AA47+AF47+AK47+AP47+AU47+AZ47 -> 4 | W47: 2 | Y47: 2 | AA47: 4
C48: 16 | D48: Projektowanie technologiczne zakładów przemysłu spożywczego | G48: 16 | H48: 0 | I48: 0 | J48: 16 | K48: 32 | L48: 5 | AQ48: 2 | AT48: 2 | AU48: 5
C49: 17 | D49: Technologia wody i ścieków | G49: 8 | H49: 0 | I49: 0 | J49: 0 | K49: 8 | L49: 1.5 | AV49: 1 | AZ49: 1.5
C50: 18 | D50: Podstawy organizacji produkcji | E50: 18/1 Marketing produktów żywnościowych | G50: =8*(M50+R50+W50+AB50+AG50+AL50+AQ50+AV50) -> 16 | H50: =8*(N50+S50+X50+AC50+AH50+AM50+AR50+AW50) -> 8 | I50: =8*(O50+T50+Y50+AD50+AI50+AN50+AS50+AX50) -> 0 | J50: =8*(P50+U50+Z50+AE50+AJ50+AO50+AT50+AY50) -> 0 | K50: =SUM(G50:J50) -> 24 | L50: =Q50+V50+AA50+AF50+AK50+AP50+AU50+AZ50 -> 3.5 | AV50: 2 | AW50: 1 | AZ50: 3.5
E51: 18/2 Podstawy tworzenia dokumentacji w firmie
C52: 19 | D52: Organizacja, zarządzanie i ekonomika przedsiębiorstw żywnościowych | G52: =8*(M52+R52+W52+AB52+AG52+AL52+AQ52+AV52) -> 16 | H52: =8*(N52+S52+X52+AC52+AH52+AM52+AR52+AW52) -> 8 | I52: =8*(O52+T52+Y52+AD52+AI52+AN52+AS52+AX52) -> 0 | J52: =8*(P52+U52+Z52+AE52+AJ52+AO52+AT52+AY52) -> 0 | K52: =SUM(G52:J52) -> 24 | L52: =Q52+V52+AA52+AF52+AK52+AP52+AU52+AZ52 -> 3 | AQ52: 2 | AR52: 1 | AS52: 0 | AU52: 3 | BB52: 2 | BC52: kursy egzaminacyjne
C53: 20 | D53: Rachunkowość | G53: =8*(M53+R53+W53+AB53+AG53+AL53+AQ53+AV53) -> 16 | H53: =8*(N53+S53+X53+AC53+AH53+AM53+AR53+AW53) -> 8 | I53: =8*(O53+T53+Y53+AD53+AI53+AN53+AS53+AX53) -> 0 | J53: =8*(P53+U53+Z53+AE53+AJ53+AO53+AT53+AY53) -> 0 | K53: =SUM(G53:J53) -> 24 | L53: =Q53+V53+AA53+AF53+AK53+AP53+AU53+AZ53 -> 3 | AQ53: 2 | AR53: 1 | AU53: 3 | BB53: 2 | BC53: 1
A54: 2 | C54: D | D54: SPECJALNOŚCIOWE | G54: =8*(M54+R54+W54+AB54+AG54+AL54+AQ54+AV54) -> 88 | H54: =8*(N54+S54+X54+AC54+AH54+AM54+AR54+AW54) -> 48 | I54: 32 | J54: 16 | K54: =SUM(G54:J54) -> 184 | L54: =Q54+V54+AA54+AF54+AK54+AP54+AU54+AZ54 -> 26 | AG54: =Specjalność!K20 -> 3 | AH54: =Specjalność!L20 -> 2 | AI54: =Specjalność!M20 -> 2 | AJ54: =Specjalność!N20 -> 0 | AK54: 7 | AL54: =Specjalność!P20 -> 6 | AM54: =Specjalność!Q20 -> 3 | AN54: =Specjalność!R20 -> 0 | AO54: =Specjalność!S20 -> 2 | AP54: 12 | AQ54: =Specjalność!U20 -> 2 | AR54: =Specjalność!V20 -> 1 | AS54: =Specjalność!W20 -> 2 | AT54: =Specjalność!X20 -> 0 | AU54: 7 | AV54: =Specjalność!Z20 -> 0 | AW54: =Specjalność!AA20 -> 0 | AX54: =Specjalność!AB20 -> 0 | AY54: =Specjalność!AC20 -> 0 | AZ54: =Specjalność!AD20 -> 0
A55: 1 | C55: E1 | D55: Praktyka I - produkcyjna, 3 tygodnie | G55: =8*(M55+R55++W55+AB55+AG55+AL55+AQ55+AV55) -> 0 | H55: =8*(N55+S55++X55+AC55+AH55+AM55+AR55+AW55) -> 0 | I55: 0 | J55: 0 | K55: =SUM(G55:J55) -> 0 | L55: =Q55+V55+AA55+AF55+AK55+AP55+AU55+AZ55 -> 2 | AF55: 2
A56: 1 | C56: E2 | D56: Praktyka II - specjalnościowa, 3 tygodnie | G56: =8*(M56+R56++W56+AB56+AG56+AL56+AQ56+AV56) -> 0 | H56: =8*(N56+S56++X56+AC56+AH56+AM56+AR56+AW56) -> 0 | I56: =8*(O56+T56++Y56+AD56+AI56+AN56+AS56+AX56) -> 0 | J56: =8*(P56+U56++Z56+AE56+AJ56+AO56+AT56+AY56) -> 0 | K56: =SUM(G56:J56) -> 0 | L56: =Q56+V56+AA56+AF56+AK56+AP56+AU56+AZ56 -> 2 | AU56: 2
A57: 1 | C57: F | D57: Seminarium dyplomowe, egzamin dyplomowy | G57: 0 | H57: 0 | I57: 0 | J57: 32 | K57: 32 | L57: =Q57+V57+AA57+AF57+AK57+AP57+AU57+AZ57 -> 17 | AT57: 1 | AU57: 2 | AY57: 3 | AZ57: 15
A58: 2 | C58: Razem A + B + C + D | G58: =G7+G15+G27+G54+SUM(G55:G57) -> 688 | H58: =H7+H15+H27+H54+SUM(H55:H57) -> 352 | I58: =I7+I15+I27+I54+SUM(I55:I57) -> 304 | J58: =J7+J15+J27+J54+J57 -> 144 | K58: =K54+K27+K15+K7+K57 -> 1488 | L58: =L7+L15+L27+L54+SUM(L55:L57) -> 213.5 | M58: 15 | N58: 8 | O58: 0 | P58: 2 | Q58: 26 | R58: 10 | S58: 5 | T58: 6 | U58: 4 | V58: 27 | W58: 12 | X58: 7 | Y58: 6 | Z58: 0 | AA58: 26.5 | AB58: 9 | AC58: 3 | AD58: 10 | AE58: 2 | AF58: 27.5 | AG58: 11 | AH58: 5 | AI58: 8 | AJ58: 2 | AK58: 26.5 | AL58: 12 | AM58: 6 | AN58: 6 | AO58: 2 | AP58: 26.5 | AQ58: 10 | AR58: 7 | AS58: 2 | AT58: 3 | AU58: 27 | AV58: 7 | AW58: 3 | AX58: 0 | AY58: 3 | AZ58: 25
G59: =CONCATENATE(SUM(M59:AY59)," godz. 8""zjazdów") -> 186 godz. 8"zjazdów | M59: =SUM(M58:P58) -> 25 | R59: =SUM(R58:U58) -> 25 | W59: =SUM(W58:Z58) -> 25 | AB59: =SUM(AB58:AE58) -> 24 | AG59: =SUM(AG58:AJ58) -> 26 | AL59: =SUM(AL58:AO58) -> 26 | AQ59: =SUM(AQ58:AT58) -> 22 | AV59: =SUM(AV58:AY58) -> 13
C60: Liczba egzaminów | G60: 21 | M60: 3 | R60: 3 | W60: 3 | AB60: 3 | AG60: 3 | AL60: 3 | AQ60: 3
G61: =G58/K58*100 -> 46.23655914 | H61: =H58/K58*100 -> 23.65591398 | I61: =I58/K58*100 -> 20.43010753 | J61: =J58/K58*100 -> 9.677419355 | K61: =SUM(G61:J61) -> 100

Sheet Arkusz1

Sheet Specjalność
E2: PLAN STUDIÓW DLA KIERUNKU: | F2: =Kierunek!H2 -> Technologia Żywności i Żywienie Człowieka I-szy stopień, studia inżynierskie niestacjonarne
E3: SPECJALNOŚĆ:
C5: Lp | D5: D - Przedmioty specjalnościowe | E5: Suma godzin / ECTS | K5: Sem. V | P5: Sem. VI | U5: Sem. VII | Z5: Sem. VIII
A6: 2 | E6: W | F6: Ć | G6: L | H6: P | I6: S | J6: PE | K6: W | L6: Ć | M6: L | N6: P | O6: PE | P6: W | Q6: Ć | R6: L | S6: P | T6: PE | U6: W | V6: Ć | W6: L | X6: P | Y6: PE | Z6: W | AA6: Ć | AB6: L | AC6: P | AD6: PE
A7: 1 | E7: =tyg*SUMIF($K$6:$Y$6,E$6,$K7:$Y7) ->  | F7: =tyg*SUMIF($K$6:$Y$6,F$6,$K7:$Y7) ->  | G7: =tyg*SUMIF($K$6:$Y$6,G$6,$K7:$Y7) ->  | H7: =tyg*SUMIF($K$6:$Y$6,H$6,$K7:$Y7) ->  | I7: =SUM(E7:H7) ->  | J7: =SUMIF($K$6:$Y$6,J$6,$K7:$Y7) -> 0
A8: 1 | C8: 1 | E8: =8*SUMIF($K$6:$Y$6,E$6,$K8:$Y8) -> 8 | F8: 8 | G8: 0 | H8: 0 | I8: =SUM(E8:H8) -> 16 | J8: 2.5 | K8: 1 | L8: 1 | O8: 2.5
A9: 1 | C9: 2 | E9: 16 | F9: 8 | G9: 0 | H9: 0 | I9: 24 | J9: 3.5 | K9: 2 | L9: 1 | O9: 3.5
A10: 1 | C10: 3 | E10: 0 | F10: 0 | G10: 16 | H10: 0 | I10: 16 | J10: 1.5 | M10: 2 | O10: 1.5
A11: 1 | C11: 4 | E11: 16 | F11: 8 | G11: 0 | H11: 0 | I11: =SUM(E11:H11) -> 24 | J11: 4 | P11: 2 | Q11: 1 | T11: 4
A12: 1 | C12: 5 | E12: 16 | F12: 8 | G12: 0 | H12: 0 | I12: =SUM(E12:H12) -> 24 | J12: 3.5 | P12: 2 | Q12: 1 | T12: 3.5
A13: 1 | C13: 6 | E13: 16 | F13: 8 | G13: 0 | H13: 0 | I13: 24 | J13: 3.5 | P13: 2 | Q13: 1 | T13: 3.5
A14: 1 | C14: 7 | E14: 0 | F14: 0 | G14: 0 | H14: 16 | I14: 16 | J14: 2 | S14: 2 | T14: 2
A15: 1 | C15: 8 | E15: 16 | F15: 8 | G15: 16 | H15: 0 | I15: =SUM(E15:H15) -> 40 | J15: 4.5 | U15: 2 | V15: 1 | W15: 2 | Y15: 4.5
A16: 1 | C16: 9 | E16: 0 | F16: 0 | G16: 0 | H16: 0 | I16: 0 | J16: 0
A17: 1 | C17: 11 | E17: 0 | F17: 0 | G17: 0 | H17: 0 | I17: =SUM(E17:H17) -> 0 | J17: 0
A18: 1 | C18: 12 | E18: 0 | F18: 0 | G18: 0 | H18: 0 | I18: 0 | J18: 0
A19: 1 | E19: =tyg*SUMIF($K$6:$Y$6,E$6,$K19:$Y19) ->  | F19: =tyg*SUMIF($K$6:$Y$6,F$6,$K19:$Y19) ->  | G19: =tyg*SUMIF($K$6:$Y$6,G$6,$K19:$Y19) ->  | H19: =tyg*SUMIF($K$6:$Y$6,H$6,$K19:$Y19) ->  | J19: 0
A20: 2 | C20: Razem | E20: =SUM(E8:E18) -> 88 | F20: 48 | G20: 32 | H20: 16 | I20: 184 | J20: 25 | K20: =SUM(K7:K19) -> 3 | L20: =SUM(L7:L19)-SUMIF($D$7:$D$19,"WF",L7:L19) -> 2 | M20: =SUM(M7:M19) -> 2 | N20: =SUM(N7:N19) -> 0 | O20: =SUM(O7:O19) -> 7.5 | P20: =SUM(P7:P19) -> 6 | Q20: =SUM(Q7:Q19)-SUMIF($D$7:$D$19,"WF",Q7:Q19) -> 3 | R20: =SUM(R7:R19) -> 0 | S20: 2 | T20: 13 | U20: 2 | V20: 1 | W20: 2 | X20: 0 | Y20: 4.5 | Z20: =SUM(Z7:Z19) -> 0 | AA20: 0 | AB20: 0 | AC20: 0 | AD20: 0
E21: =CONCATENATE(SUM(K21:Y21)," godz. x ",8," zjazdów") -> 23 godz. x 8 zjazdów | K21: =SUM(K20:N20) -> 7 | P21: =SUM(P20:S20) -> 11 | U21: =SUM(U20:X20) -> 5 | Z21: =SUM(Z20:AC20) -> 0
C22: Liczba egzaminów | E22: =SUM(K22:Z22) -> 5 | K22: 1 | P22: 3 | U22: 1
W24: 2 | X24: 1 | Y24: kursy egzaminacyjne
W25: 2
W26: 2 | X26: 1 | Y26: kursy nieegzaminacyjne
W27: 2

Sheet Żywienie
E2: PLAN STUDIÓW DLA KIERUNKU: | F2: Technologia Żywności i Żywienie Człowieka
F3: I stopień - studia inżynierskie, studia niestacjonarne
E4: SPECJALNOŚĆ: | F4: Żywienie człowieka i bezpieczeństwo żywności
C6: Lp | D6: D/Z - Przedmioty specjalnościowe | E6: Suma godzin / ECTS | K6: Sem. V | P6: Sem. VI | U6: Sem. VII | Z6: Sem. VIII
A7: 2 | E7: W | F7: Ć | G7: L | H7: P | I7: S | J7: PE | K7: W | L7: Ć | M7: L | N7: P | O7: PE | P7: W | Q7: Ć | R7: L | S7: P | T7: PE | U7: W | V7: Ć | W7: L | X7: P | Y7: PE | Z7: W | AA7: Ć | AB7: L | AC7: P | AD7: PE
A8: 1 | C8: D/Z-1 | D8: Żywienie człowieka - działy wybrane | E8: =8*SUMIF($K$7:$Y$7,E$7,$K8:$Y8) -> 16 | F8: 16 | I8: =SUM(E8:H8) -> 32 | J8: =SUMIF($K$7:$Y$7,J$7,$K8:$Y8) -> 4 | K8: 2 | L8: 2 | O8: 4
A9: 1 | C9: D/Z-2 | D9: Żywność funkcjonalna i specjalnego przeznaczenia | E9: 8 | I9: =SUM(E9:H9) -> 8 | J9: 1 | P9: 1 | T9: 1
A10: 1 | C10: D/Z-3 | D10: Podstawy prawa żywnościowego | E10: 16 | F10: 16 | I10: 32 | J10: 4 | P10: 2 | Q10: 2 | T10: 4
A11: 1 | C11: D/Z-4 | D11: Technologia gastronomiczna z towaroznawstwem | E11: 8 | G11: 16 | I11: =SUM(E11:H11) -> 24 | J11: 3 | K11: 1 | M11: 2 | O11: 3
A12: 1 | C12: D/Z-5 | D12: Higiena żywności i żywienia | E12: 16 | F12: 8 | H12: 16 | I12: =SUM(E12:H12) -> 40 | J12: 7 | U12: 2 | V12: 1 | X12: 2 | Y12: 7
A13: 1 | C13: D/Z-6 | D13: Fizjologia żywienia człowieka | E13: 16 | F13: 8 | I13: 24 | J13: 4 | P13: 2 | Q13: 1 | T13: 4
A14: 1 | C14: D/Z-7 | D14: Dietetyka z profilaktyką | E14: 8 | H14: 8 | I14: 16 | J14: 2 | P14: 1 | S14: 1 | T14: 2
A15: 1 | C15: D/Z-8 | D15: Sensoryczne metody kontroli jakości zywności | H15: 8 | I15: =SUM(E15:H15) -> 8 | J15: 1 | S15: 1 | T15: 1
A16: 1
A17: 1
A18: 1
A19: 2 | C19: Razem | E19: =SUM(E8:E18) -> 88 | F19: 48 | G19: 16 | H19: 32 | I19: 184 | J19: 26 | K19: =SUM(K8:K18) -> 3 | L19: =SUM(L8:L18)-SUMIF($D$8:$D$18,"WF",L8:L18) -> 2 | M19: =SUM(M8:M18) -> 2 | O19: =SUM(O8:O18) -> 7 | P19: =SUM(P8:P18) -> 6 | Q19: =SUM(Q8:Q18)-SUMIF($D$8:$D$18,"WF",Q8:Q18) -> 3 | S19: =SUM(S8:S18) -> 2 | T19: 12 | U19: 2 | V19: 1 | W19: 0 | X19: 2 | Y19: 7
E20: =CONCATENATE(SUM(K20:Y20)," godz. x ",8," zjazdów") -> 23 godz. x 8 zjazdów | K20: =SUM(K19:N19) -> 7 | P20: =SUM(P19:S19) -> 11 | U20: =SUM(U19:X19) -> 5
C21: Liczba egzaminów | E21: =SUM(K21:Z21) -> 4 | K21: 1 | P21: 2 | U21: 1
W23: 2 | X23: 1 | Y23: kursy egzaminacyjne
W24: 2

Sheet Inżynieria
D2: PLAN STUDIÓW DLA KIERUNKU: | E2: Technologia Żywności i Żywienie Człowieka
E3: I-szy stopień, studia inżynierskie niestacjonarne
D4: SPECJALNOŚĆ: | E4: Inżynieria żywności
C6: Lp | D6: D/I - Przedmioty specjalnościowe | E6: Suma godzin / ECTS | K6: Sem. V | P6: Sem. VI | U6: Sem. VII | Z6: Sem. VIII
A7: 2 | E7: W | F7: Ć | G7: L | H7: P | I7: S | J7: PE | K7: W | L7: Ć | M7: L | N7: P | O7: PE | P7: W | Q7: Ć | R7: L | S7: P | T7: PE | U7: W | V7: Ć | W7: L | X7: P | Y7: PE | Z7: W | AA7: Ć | AB7: L | AC7: P | AD7: PE
A8: 1 | C8: D/I-1 | D8: Higiena przemysłowa | E8: =8*SUMIF($K$7:$Y$7,E$7,$K8:$Y8) -> 8 | F8: =8*SUMIF($K$7:$Y$7,F$7,$K8:$Y8) -> 8 | H8: 8 | I8: =SUM(E8:H8) -> 24 | J8: =SUMIF($K$7:$Y$7,J$7,$K8:$Y8) -> 4 | P8: 1 | Q8: 1 | T8: 2.5 | X8: 1 | Y8: 1.5
A9: 1 | C9: D/I-2 | D9: Procesy i urządzenia przemysłu spożywczego | E9: =8*SUMIF($K$7:$Y$7,E$7,$K9:$Y9) -> 16 | F9: =8*SUMIF($K$7:$Y$7,F$7,$K9:$Y9) -> 8 | G9: 16 | I9: =SUM(E9:H9) -> 40 | J9: 5 | K9: 2 | L9: 1 | M9: 2 | O9: 5
A10: 1 | C10: D/I-3 | D10: Procesy termiczne w technologii żywności | E10: 16 | F10: 8 | I10: 24 | J10: 3 | U10: 1 | V10: 1 | Y10: 3
A11: 1 | C11: D/I-4 | D11: Linie technologiczne przemysłu spożywczego | E11: =8*SUMIF($K$7:$Y$7,E$7,$K11:$Y11) -> 24 | F11: 8 | H11: 8 | I11: =SUM(E11:H11) -> 40 | J11: 5.5 | P11: 2 | Q11: 1 | S11: 1 | T11: 4.5 | U11: 1 | Y11: 1
A12: 1 | C12: D/I-5 | D12: Eksploatacja w przemyśle spożywczym | E12: 16 | F12: 8 | I12: =SUM(E12:H12) -> 24 | J12: 3 | P12: 2 | Q12: 1 | T12: 3
A13: 1 | C13: D/I-6 | D13: Procesy i urządzenia mycia | E13: 8 | F13: 8 | I13: 16 | J13: 2 | K13: 1 | L13: 1 | O13: 2
A14: 1 | C14: D/I-7 | D14: Projektowanie zakładów gastronomicznych | H14: =8*SUMIF($K$7:$Y$7,H$7,$K14:$Y14) -> 8 | I14: 8 | J14: 1.5 | X14: 1 | Y14: 1.5
A15: 1 | C15: D/I-8 | D15: Projektowanie operacji technologicznych | E15: =8*SUMIF($K$7:$Y$7,E$7,$K15:$Y15) -> 8 | H15: 8 | I15: =SUM(E15:H15) -> 16 | J15: 2 | P15: 1 | S15: 1 | T15: 2
A16: 1
A17: 2 | C17: Razem | E17: =SUM(E8:E15) -> 96 | F17: =SUM(F8:F15) -> 48 | G17: =SUM(G8:G15) -> 16 | H17: =SUM(H8:H15) -> 32 | I17: =SUM(I8:I15) -> 192 | J17: =SUM(J8:J16) -> 26 | K17: =SUM(K8:K16) -> 3 | L17: =SUM(L8:L16)-SUMIF($D$8:$D$16,"WF",L8:L16) -> 2 | M17: =SUM(M8:M16) -> 2 | N17: =SUM(N8:N16) -> 0 | O17: =SUM(O8:O16) -> 7 | P17: =SUM(P8:P16) -> 6 | Q17: =SUM(Q8:Q16)-SUMIF($D$8:$D$16,"WF",Q8:Q16) -> 3 | R17: 0 | S17: =SUM(S8:S16) -> 2 | T17: =SUM(T8:T16) -> 12 | U17: =SUM(U8:U15) -> 2 | V17: =SUM(V8:V15) -> 1 | W17: =SUM(W8:W15) -> 0 | X17: =SUM(X8:X15) -> 2 | Y17: =SUM(Y8:Y16) -> 7
E18: =CONCATENATE(SUM(K18:Y18)," godz. x ",8," zjazdów") -> 23 godz. x 8 zjazdów | K18: =SUM(K17:N17) -> 7 | P18: =SUM(P17:S17) -> 11 | U18: =SUM(U17:X17) -> 5
C19: Liczba egzaminów | E19: =SUM(K19:Z19) -> 4 | K19: 1 | P19: 2 | U19: 1
Q21: 2 | R21: 1 | S21: kursy egzaminacyjne
Q22: 2

Sheet Biotechnologia
E2: PLAN STUDIÓW DLA KIERUNKU: | F2: Technologia Żywności i Żywienie Człowieka
F3: I stopień, studia inżynierskie, niestacjonarne
E4: SPECJALNOŚĆ: | F4: Biotechnologia żywności
C6: Lp | D6: D/B - Przedmioty specjalności | E6: Suma godzin / ECTS | K6: Sem. V | P6: Sem. VI | U6: Sem. VII | Z6: Sem. VIII
A7: 2 | E7: W | F7: Ć | G7: L | H7: P | I7: S | J7: PE | K7: W | L7: Ć | M7: L | N7: P | O7: PE | P7: W | Q7: Ć | R7: L | S7: P | T7: PE | U7: W | V7: Ć | W7: L | X7: P | Y7: PE | Z7: W | AA7: Ć | AB7: L | AC7: P | AD7: PE
A8: 1 | C8: D/B-1 | D8: Biologia molekularna z podst. genetyki | E8: =8*SUMIF($K$7:$Y$7,E$7,$K8:$Y8) -> 8 | F8: 16 | G8: 8 | I8: =SUM(E8:H8) -> 32 | J8: =SUMIF($K$7:$Y$7,J$7,$K8:$Y8) -> 3 | K8: 1 | L8: 2 | O8: 3
A9: 1 | C9: D/B-2 | D9: Techniki fermentacyjne | E9: 8 | F9: 8 | G9: 8 | I9: =SUM(E9:H9) -> 24 | J9: 5 | U9: 1 | V9: 1 | W9: 2 | Y9: 5
A10: 1 | C10: D/B-3 | D10: Procesy i operacje biotechnologiczne | E10: 16 | F10: 8 | G10: 16 | I10: 40 | J10: 4 | K10: 2 | M10: 2 | O10: 4
A11: 1 | C11: D/B/4 | D11: Biotechnologia składników żywności | E11: 16 | F11: 8 | I11: =SUM(E11:H11) -> 24 | J11: 3 | P11: 2 | Q11: 1 | T11: 3
A12: 1 | C12: D/B/5 | D12: Biotechnologia żywn. Wygodnej i funkcjonalnej | E12: 8 | F12: 8 | H12: 8 | I12: =SUM(E12:H12) -> 24 | J12: 3 | P12: 1 | Q12: 1 | S12: 1 | T12: 3
A13: 1 | C13: D/B-6 | D13: Mikroorganizmy w bitech. żywności | E13: 8 | G13: 8 | I13: 16 | J13: 1 | P13: 1 | T13: 1
A14: 1 | C14: D/B-7 | D14: Technologia enzymatyczna | E14: 16 | F14: 8 | I14: 24 | J14: 5 | P14: 1 | Q14: 1 | T14: 3 | U14: 1 | Y14: 2
A15: 1 | C15: D/B-8 | D15: Bioanaliza żywności | E15: 8 | H15: 8 | I15: =SUM(E15:H15) -> 16 | J15: 2 | P15: 1 | S15: 1 | T15: 2
A16: 1
A17: 1
A18: 2 | C18: Razem | E18: =SUM(E8:E17) -> 88 | F18: 56 | G18: 40 | H18: 16 | I18: 200 | J18: 26 | K18: 3 | L18: 2 | M18: 2 | N18: 0 | O18: 7 | P18: 6 | Q18: 3 | R18: 0 | S18: 2 | T18: 12 | U18: 2 | V18: 1 | W18: 2 | X18: 0 | Y18: 7
E19: =CONCATENATE(SUM(K19:Y19)," godz. x ",8," zjazdów") -> 23 godz. x 8 zjazdów | K19: =SUM(K18:N18) -> 7 | P19: =SUM(P18:S18) -> 11 | U19: =SUM(U18:X18) -> 5
C20: Liczba egzaminów | E20: =SUM(K20:Z20) -> 4 | K20: 1 | P20: 2 | U20: 1
W22: 2 | X22: 1 | Y22: kursy egzaminacyjne
W23: 2

Sheet Projektowanie opakowań
E2: PLAN STUDIÓW DLA KIERUNKU: | F2: Technologia Żywności i Żywienie Człowieka
F3: I stopień, studia inżynierskie, niestacjonarne
E4: SPECJALNOŚĆ: | F4: Projektowanie opakowań
C6: Lp | D6: D/O - Przedmioty specjalności | E6: Suma godzin / ECTS | K6: Sem. V | P6: Sem. VI | U6: Sem. VII | Z6: Sem. VIII
A7: 2 | E7: W | F7: Ć | G7: L | H7: P | I7: S | J7: PE | K7: W | L7: Ć | M7: L | N7: P | O7: PE | P7: W | Q7: Ć | R7: L | S7: P | T7: PE | U7: W | V7: Ć | W7: L | X7: P | Y7: PE | Z7: W | AA7: Ć | AB7: L | AC7: P | AD7: PE
A8: 1 | C8: D/O-1 | D8: Komunikacja wizulana | E8: =SUM(K8,P8,U8,Z8)*8 -> 0 | F8: =SUM(L8,Q8,V8,AA8)*8 -> 24 | G8: 0 | H8: 0 | I8: =SUM(E8:H8) -> 24 | J8: =SUMIF($K$7:$Y$7,J$7,$K8:$Y8) -> 3 | L8: 1 | O8: 1 | Q8: 2 | T8: 2
A9: 1 | C9: D/O-2 | D9: Podstawy desingu | E9: =SUM(K9,P9,U9,Z9)*8 -> 16 | F9: 8 | G9: 0 | H9: 0 | I9: 24 | J9: 4 | K9: 2 | L9: 1 | O9: 4
A10: 1 | C10: D/O-3 | D10: Projektowanie form opakowań | E10: 0 | F10: 0 | G10: 0 | H10: 16 | I10: 16 | J10: 2 | S10: 2 | T10: 2
A11: 1 | C11: D/O-4 | D11: Inżynieria materiałów opakowaniowych | E11: 16 | F11: 0 | G11: 16 | H11: 0 | I11: 32 | J11: 4 | K11: 1 | M11: 2 | O11: 2 | U11: 1 | Y11: 2
A12: 1 | C12: D/O-5 | D12: Techniki pakowania żywności | E12: 16 | F12: 8 | G12: 0 | H12: 0 | I12: 24 | J12: 4 | P12: 2 | Q12: 1 | T12: 4
A13: 1 | C13: D/O-6 | D13: Konstrukcja opakowań | E13: 16 | F13: 0 | G13: 16 | H13: 0 | I13: 32 | J13: 4 | P13: 2 | T13: 2 | W13: 2 | Y13: 2
A14: 1 | C14: D/O-7 | D14: Logistyka opakowanych produktów spoż. | E14: 8 | F14: 0 | G14: 0 | H14: 0 | I14: 8 | J14: 1 | U14: 1 | Y14: 1
A15: 1 | C15: D/O-8 | D15: Techniki wytwarzania opakowań | E15: 16 | F15: 8 | G15: 0 | H15: 0 | I15: 24 | J15: 4 | P15: 2 | T15: 2 | V15: 1 | Y15: 2
A16: 1
A17: 1
A18: 2 | C18: Razem | E18: =SUM(E8:E17) -> 88 | F18: 48 | G18: 32 | H18: 16 | I18: 184 | J18: 26 | K18: 3 | L18: 2 | M18: 2 | N18: 0 | O18: 7 | P18: 6 | Q18: 3 | R18: 0 | S18: 2 | T18: 12 | U18: 2 | V18: 1 | W18: 2 | X18: 0 | Y18: 7
E19: =CONCATENATE(SUM(K19:Y19)," godz. x ",8," zjazdów") -> 23 godz. x 8 zjazdów | K19: =SUM(K18:N18) -> 7 | P19: =SUM(P18:S18) -> 11 | U19: =SUM(U18:X18) -> 5
C20: Liczba egzaminów | E20: =SUM(K20:Z20) -> 4 | K20: 1 | P20: 2 | U20: 1
W22: 2 | X22: 1 | Y22: kursy egzaminacyjne
W23: 2
